bitfinex/quotes_SOLUSD_20241202
["timestamp","ask_amount","ask_price","bid_price","bid_amount"]
[1733145475344,20.93964767,224.82,224.76,25.40964767]
[1733145475547,20.93964767,224.84,224.76,25.40964767]
[1733145475772,20.93964767,224.86,224.78,20.93964767]
[1733145476376,20.93964767,224.84,224.76,25.40964767]
[1733145476750,20.93964767,224.86,224.78,20.93964767]
[1733145477369,20.93964767,224.84,224.76,25.40964767]
[1733145477766,20.93964767,224.82,224.76,4.47]
[1733145477955,1.1117,224.87,224.69,33.0375]
[1733145477956,20.93964767,224.77,224.69,33.0375]
[1733145478277,20.93964767,224.76,224.69,33.0375]
[1733145478451,20.93964767,224.77,224.7,20.93964767]
[1733145478772,20.93964767,224.81,224.73,20.93964767]
[1733145478969,20.93964767,224.83,224.75,20.93964767]
[1733145479179,1.1119,224.84,224.74,20.93964767]
[1733145479180,20.93964767,224.81,224.74,20.93964767]
[1733145479355,20.93964767,224.81,224.73,25.40964767]
[1733145479668,1.1119,224.84,224.73,25.40964767]
[1733145479669,20.93964767,224.78,224.73,4.47]
[1733145479876,20.93964767,224.8,224.73,25.40964767]
[1733145480075,20.93964767,224.81,224.74,20.93964767]
[1733145480682,20.93964767,224.83,224.76,20.93964767]
[1733145481363,20.93964767,224.82,224.75,20.93964767]
[1733145481560,20.93964767,224.81,224.74,20.93964767]
[1733145481765,20.93964767,224.8,224.73,20.93964767]
[1733145482361,20.93964767,224.79,224.71,20.93964767]
[1733145482556,22.05154767,224.84,224.69,53.97714767]
[1733145482557,20.93964767,224.76,224.69,53.97714767]
[1733145482782,20.93964767,224.75,224.69,33.0375]
[1733145483382,20.93964767,224.73,224.68,12.1559]
[1733145483980,20.93964767,224.72,224.65,20.93964767]
[1733145484489,20.93964767,224.7,224.63,33.43864767]
[1733145484779,20.93964767,224.69,224.63,33.43864767]
[1733145484958,1.1124,224.73,224.64,20.93964767]
[1733145484959,20.93964767,224.71,224.64,20.93964767]
[1733145485157,20.93964767,224.72,224.65,20.93964767]
[1733145485558,20.93964767,224.71,224.64,20.93964767]
[1733145485864,20.93964767,224.7,224.63,33.43864767]
[1733145486072,20.90064767,224.71,224.64,20.93964767]
[1733145486453,20.93964767,224.7,224.64,20.93964767]
[1733145486656,20.93964767,224.71,224.64,20.93964767]
[1733145486985,20.93964767,224.72,224.65,20.93964767]
[1733145487586,20.93964767,224.77,224.7,20.93964767]
[1733145487957,20.93964767,224.78,224.71,20.93964767]
[1733145488289,20.93964767,224.75,224.68,20.93964767]
[1733145489272,20.93964767,224.76,224.69,20.93964767]
[1733145489578,20.93964767,224.75,224.68,20.93964767]
[1733145489896,20.93964767,224.73,224.66,20.93964767]
[1733145490063,20.93964767,224.72,224.65,20.93964767]
[1733145490393,20.93964767,224.71,224.65,20.93964767]
[1733145490560,20.93964767,224.68,224.63,12.499]
[1733145491164,20.93964767,224.66,224.59,50.95464767]
[1733145491362,20.93964767,224.65,224.59,50.95464767]
[1733145491564,20.93964767,224.65,224.59,30.015]
[1733145491785,20.93964767,224.66,224.59,50.95464767]
[1733145492076,20.93964767,224.66,224.6,20.93964767]
[1733145493073,20.93964767,224.64,224.59,34.485]
[1733145493467,20.93964767,224.65,224.59,55.42464767]
[1733145493665,20.93964767,224.61,224.57,13.0152]
[1733145494084,20.93964767,224.58,224.52,13.1197]
[1733145494278,0.12549,224.67,224.52,13.1197]
[1733145494279,20.93964767,224.56,224.52,13.1197]
[1733145494668,20.93964767,224.58,224.52,13.1197]
[1733145494877,20.93964767,224.6,224.54,20.93964767]
[1733145495606,20.93964767,224.61,224.55,20.93964767]
[1733145495890,1.1128,224.65,224.54,20.93964767]
[1733145495891,20.93964767,224.6,224.54,20.93964767]
[1733145496181,20.93964767,224.6,224.53,20.93964767]
[1733145496600,20.93964767,224.6,224.54,20.93964767]
[1733145497110,20.93964767,224.55,224.5,81.8182]
[1733145497600,20.93964767,224.57,224.51,20.93964767]
[1733145497978,20.93964767,224.57,224.5,102.75784767]
[1733145498698,20.93964767,224.56,224.5,81.8182]
[1733145498902,20.93964767,224.55,224.5,81.8182]
[1733145499201,20.93964767,224.52,224.5,81.8182]
[1733145499586,20.93964767,224.51,224.5,81.8182]
[1733145499793,20.93964767,224.53,224.5,81.8182]
[1733145500479,20.93964767,224.55,224.5,81.8182]
[1733145500804,20.93964767,224.57,224.5,102.75784767]
[1733145501035,20.93964767,224.51,224.5,81.8182]
[1733145501695,20.93964767,224.52,224.5,81.8182]
[1733145501897,20.93964767,224.54,224.5,81.8182]
[1733145502102,20.93964767,224.57,224.5,102.75784767]
[1733145502599,1.113,224.61,224.5,102.75784767]
[1733145502600,20.93964767,224.58,224.51,20.93964767]
[1733145502791,20.93964767,224.57,224.5,102.75784767]
[1733145503915,20.93964767,224.56,224.5,81.8182]
[1733145505608,20.93964767,224.56,224.51,4.47]
[1733145505985,20.93964767,224.57,224.51,4.47]
[1733145506186,20.93964767,224.58,224.52,20.93964767]
[1733145506497,20.93964767,224.6,224.54,4.47]
[1733145506692,20.93964767,224.57,224.5,107.22784767]
[1733145507006,1.1129,224.63,224.5,107.22784767]
[1733145507007,20.93964767,224.51,224.5,81.8182]
[1733145507300,20.93964767,224.53,224.5,81.8182]
[1733145507505,20.93964767,224.52,224.5,81.8182]
[1733145508095,20.93964767,224.53,224.5,81.8182]
[1733145508920,20.93964767,224.52,224.5,81.8182]
[1733145509411,20.93964767,224.51,224.5,81.8182]
[1733145511210,20.93964767,224.57,224.51,4.47]
[1733145511388,20.93964767,224.6,224.54,25.40964767]
[1733145511590,20.93964767,224.61,224.54,25.40964767]
[1733145511794,20.93964767,224.6,224.54,4.47]
[1733145512021,20.93964767,224.6,224.53,33.65234767]
[1733145512698,20.93964767,224.6,224.54,20.93964767]
[1733145512893,20.93964767,224.64,224.57,25.40964767]
[1733145513294,20.93964767,224.65,224.58,20.93964767]
[1733145513916,20.93964767,224.7,224.63,20.93964767]
[1733145514096,20.93964767,224.71,224.65,4.47]
[1733145514301,20.93964767,224.69,224.65,4.47]
[1733145515017,20.93964767,224.69,224.63,4.47]
[1733145515406,20.93964767,224.69,224.62,20.93964767]
[1733145515807,20.93964767,224.69,224.6,4.47]
[1733145515808,20.93964767,224.68,224.61,20.93964767]
[1733145516111,20.93964767,224.69,224.62,20.93964767]
[1733145516318,20.93964767,224.68,224.61,20.93964767]
[1733145517002,20.93964767,224.68,224.6,4.47]
[1733145517003,20.93964767,224.7,224.63,20.93964767]
[1733145517202,1.1122,224.78,224.67,20.93964767]
[1733145517400,20.93964767,224.76,224.69,20.93964767]
[1733145517919,20.93964767,224.75,224.68,20.93964767]
[1733145518101,20.93964767,224.76,224.69,20.93964767]
[1733145518307,20.93964767,224.8,224.73,20.93964767]
[1733145518504,20.93964767,224.8,224.74,20.93964767]
[1733145518828,20.93964767,224.81,224.74,20.93964767]
[1733145519013,0.3072585,224.86,224.75,20.93964767]
[1733145519014,20.93964767,224.82,224.75,20.93964767]
[1733145519203,20.93964767,224.83,224.76,33.23314767]
[1733145519403,20.93964767,224.84,224.77,20.93964767]
[1733145519601,20.93964767,224.82,224.76,12.2935]
[1733145520820,20.93964767,224.81,224.76,12.2935]
[1733145521199,0.3072585,224.86,224.78,23.776884]
[1733145521407,0.3072585,224.86,224.85,20.93964767]
[1733145522015,0.3072585,224.86,224.81,0.88696147]
[1733145522320,20.93964767,224.83,224.77,30.882]
[1733145522803,20.93964767,224.85,224.77,51.82164767]
[1733145523004,21.24690617,224.86,224.78,20.93964767]
[1733145523226,21.24690617,224.86,224.77,30.882]
[1733145523227,20.93964767,224.84,224.77,51.82164767]
[1733145523409,20.93964767,224.84,224.8,4.39403126]
[1733145523807,20.93964767,224.85,224.8,4.39403126]
[1733145524209,20.93964767,224.84,224.8,4.39403126]
[1733145524918,20.93964767,224.85,224.8,4.39403126]
[1733145525124,21.24690617,224.86,224.8,4.39403126]
[1733145525331,0.3072585,224.86,224.8,25.33367893]
[1733145525505,0.3072585,224.86,224.81,20.93964767]
[1733145525708,0.3072585,224.86,224.83,20.93964767]
[1733145526109,0.3072585,224.86,224.83,4.39403126]
[1733145526315,0.3072585,224.86,224.83,25.33367893]
[1733145526517,0.3072585,224.86,224.82,25.33367893]
[1733145526923,0.3072585,224.86,224.82,4.39403126]
[1733145527126,0.3072585,224.86,224.83,20.93964767]
[1733145527322,0.3072585,224.86,224.84,20.93964767]
[1733145527526,0.3072585,224.86,224.85,20.93964767]
[1733145527842,0.3072585,224.86,224.85,4.38435067]
[1733145528036,0.3072585,224.86,224.85,25.32399834]
[1733145528831,34.0306,225.04,224.85,33.95824767]
[1733145529010,20.93964767,225.02,224.95,20.93964767]
[1733145529530,20.93964767,225.0,224.93,20.93964767]
[1733145529723,20.93964767,225.0,224.92,20.93964767]
[1733145529927,20.93964767,224.97,224.91,4.3796996]
[1733145530114,20.93964767,224.98,224.91,20.93964767]
[1733145530530,20.93964767,224.96,224.91,4.47]
[1733145530839,20.93964767,224.98,224.91,25.40964767]
[1733145531134,20.93964767,224.99,224.92,20.93964767]
[1733145531334,20.93964767,224.98,224.91,29.78934727]
[1733145531627,20.93964767,224.99,224.92,20.93964767]
[1733145531829,20.93964767,224.98,224.91,25.40964767]
[1733145532037,20.93964767,224.97,224.91,4.47]
[1733145532329,20.93964767,225.01,224.94,20.93964767]
[1733145532927,20.93964767,225.0,224.93,20.93964767]
[1733145533427,20.93964767,224.99,224.92,25.40964767]
[1733145533636,20.93964767,225.0,224.93,20.93964767]
[1733145533828,20.93964767,225.01,224.94,20.93964767]
[1733145535219,20.93964767,225.0,224.93,20.93964767]
[1733145536125,20.93964767,225.0,224.92,29.76566134]
[1733145536321,20.93964767,224.97,224.92,4.35601367]
[1733145536628,20.93964767,224.98,224.91,25.29566134]
[1733145536934,20.93964767,224.97,224.91,4.35601367]
[1733145537138,5.0,225.12,224.96,20.93964767]
[1733145537347,20.93964767,225.06,224.98,20.93964767]
[1733145538316,20.93964767,225.05,224.98,20.93964767]
[1733145538724,20.93964767,225.04,224.97,25.29566134]
[1733145538942,20.93964767,224.99,224.97,4.35601367]
[1733145539235,1.1109,225.04,224.95,4.35601367]
[1733145539236,20.93964767,224.98,224.95,4.35601367]
[1733145539538,20.93964767,224.96,224.93,4.35601367]
[1733145539842,20.93964767,224.96,224.92,4.35601367]
[1733145540015,20.93964767,224.96,224.93,4.35601367]
[1733145540218,20.93964767,224.96,224.91,4.35601367]
[1733145540531,20.93964767,224.96,224.8,11.1205]
[1733145540532,20.93964767,224.92,224.9,4.35601367]
[1733145540722,20.93964767,224.91,224.9,4.35601367]
[1733145540924,20.93964767,224.91,224.83,30.9594]
[1733145540925,20.93964767,224.91,224.86,4.35601367]
[1733145541235,1.1114,224.94,224.83,30.9594]
[1733145541236,22.05104767,224.94,224.87,25.29566134]
[1733145541541,22.05084767,224.98,224.91,20.93964767]
[1733145541835,1.1112,224.98,224.92,20.93964767]
[1733145542035,17.085,225.04,224.93,20.93964767]
[1733145542036,20.93964767,225.0,224.93,20.93964767]
[1733145542237,1.111,225.02,224.95,20.93964767]
[1733145542238,20.93964767,225.01,224.95,20.93964767]
[1733145542421,22.05064767,225.02,224.95,20.93964767]
[1733145542626,20.93964767,224.99,224.94,8.82601367]
[1733145542928,20.93964767,224.95,224.86,12.0325]
[1733145543128,21.19062767,224.95,224.94,1.5208979]
[1733145543440,20.93964767,224.95,224.91,1.5208979]
[1733145543647,0.12549,224.94,224.83,35.4294]
[1733145544016,20.93964767,224.9,224.83,56.36904767]
[1733145545231,20.93964767,224.89,224.83,35.4294]
[1733145545444,20.93964767,224.92,224.85,20.93964767]
[1733145545929,20.93964767,224.91,224.84,20.93964767]
[1733145546131,20.93964767,224.9,224.83,25.40964767]
[1733145546521,20.93964767,224.87,224.8,37.44214767]
[1733145547047,20.93964767,224.88,224.81,20.93964767]
[1733145547751,20.93964767,224.85,224.8,16.5025]
[1733145547925,20.93964767,224.84,224.8,12.0325]
[1733145548247,20.93964767,224.82,224.79,0.4295352]
[1733145548545,20.93964767,224.84,224.79,0.4295352]
[1733145549126,20.93964767,224.83,224.79,0.4295352]
[1733145550448,20.93964767,224.82,224.79,0.4295352]
[1733145550640,20.93964767,224.83,224.79,0.4295352]
[1733145551519,21.06513767,224.84,224.79,0.4295352]
[1733145552024,20.93964767,224.86,224.79,21.36918287]
[1733145552243,20.93964767,224.89,224.82,20.93964767]
[1733145553027,22.05114767,224.92,224.85,20.93964767]
[1733145553330,20.93964767,224.9,224.83,20.93964767]
[1733145553539,20.93964767,224.87,224.8,20.93964767]
[1733145553737,1.1115,224.92,224.79,0.4295352]
[1733145553738,20.93964767,224.85,224.79,0.4295352]
[1733145554753,20.93964767,224.84,224.79,0.4295352]
[1733145555127,20.93964767,224.85,224.79,0.4295352]
[1733145558048,20.93964767,224.87,224.8,20.93964767]
[1733145558244,0.12549,224.87,224.81,20.93964767]
[1733145558951,20.93964767,224.87,224.8,20.93964767]
[1733145559245,20.93964767,224.92,224.85,20.93964767]
[1733145559433,20.93964767,224.9,224.83,20.93964767]
[1733145560250,20.93964767,224.92,224.85,20.93964767]
[1733145560431,20.93964767,224.93,224.86,20.93964767]
[1733145560631,20.93964767,224.95,224.88,20.93964767]
[1733145560948,20.93964767,224.94,224.87,20.93964767]
[1733145561146,20.93964767,224.93,224.86,20.93964767]
[1733145561332,20.93964767,224.92,224.85,20.93964767]
[1733145561533,20.93964767,224.91,224.84,20.93964767]
[1733145561851,20.93964767,224.9,224.83,20.93964767]
[1733145562059,20.93964767,224.89,224.82,52.51374767]
[1733145562240,20.93964767,224.9,224.83,20.93964767]
[1733145562439,20.93964767,224.92,224.85,20.93964767]
[1733145562630,20.93964767,224.95,224.88,20.93964767]
[1733145563034,20.93964767,224.94,224.87,20.93964767]
[1733145565054,20.93964767,224.95,224.88,20.93964767]
[1733145565931,20.93964767,224.98,224.91,20.93964767]
[1733145566134,1.1111,225.0,224.94,20.93964767]
[1733145566360,20.93964767,224.97,224.9,20.93964767]
[1733145566541,20.93964767,224.97,224.89,20.93964767]
[1733145566738,20.93964767,224.97,224.84,0.88682052]
[1733145566739,30.5577,225.07,224.84,5.87880751]
[1733145567061,1.1108,225.06,224.85,16.1185]
[1733145567264,20.93964767,225.01,224.93,20.93964767]
[1733145569852,1.1109,225.03,224.93,20.93964767]
[1733145569853,20.93964767,224.99,224.93,20.93964767]
[1733145570858,20.93964767,224.98,224.91,20.93964767]
[1733145571074,20.93964767,224.99,224.92,20.93964767]
[1733145571441,20.93964767,224.97,224.9,20.93964767]
[1733145571649,20.93964767,225.06,224.86,5.35679631]
[1733145571650,20.93964767,225.01,224.93,20.93964767]
[1733145571852,20.93964767,225.02,224.94,20.93964767]
[1733145572650,20.93964767,225.02,224.95,20.93964767]
[1733145572962,20.93964767,225.0,224.93,20.93964767]
[1733145573563,13.0562584,225.01,224.94,13.0562584]
[1733145573854,13.0562584,225.01,224.92,45.6507]
[1733145573855,13.0562584,225.02,224.95,13.0562584]
[1733145574045,13.0562584,225.0,224.93,13.0562584]
[1733145574246,13.0562584,224.97,224.92,45.6507]
[1733145574675,13.0562584,224.98,224.92,45.6507]
[1733145575257,13.0562584,224.95,224.92,45.6507]
[1733145575466,13.0562584,224.94,224.87,59.0357584]
[1733145575672,13.0562584,224.93,224.87,45.9795]
[1733145575889,13.0562584,224.9,224.87,45.9795]
[1733145576373,13.0562584,224.92,224.87,45.9795]
[1733145576574,13.0562584,224.93,224.87,45.9795]
[1733145576979,13.0562584,224.94,224.87,59.0357584]
[1733145577561,20.90171825,224.94,224.87,66.88121825]
[1733145578259,20.90171825,224.91,224.87,45.9795]
[1733145578674,20.90171825,224.91,224.87,13.1352]
[1733145578866,20.90171825,224.91,224.83,20.90171825]
[1733145579074,20.90171825,224.91,224.84,20.90171825]
[1733145579377,20.90171825,224.93,224.86,20.90171825]
[1733145579548,0.12549,225.01,224.82,44.48275007]
[1733145579549,20.90171825,224.91,224.84,20.90171825]
[1733145579754,20.90171825,224.91,224.83,20.90171825]
[1733145579948,20.90171825,224.95,224.89,20.90171825]
[1733145580175,20.90171825,224.97,224.9,20.90171825]
[1733145580558,20.90171825,224.95,224.88,20.90171825]
[1733145580758,20.90171825,224.95,224.87,20.90171825]
[1733145581483,20.90171825,224.95,224.88,20.90171825]
[1733145582909,20.90171825,224.97,224.9,20.90171825]
[1733145583062,22.01271825,225.02,224.95,20.90171825]
[1733145583570,22.01271825,225.02,224.94,20.90171825]
[1733145584079,20.90171825,225.04,224.97,20.90171825]
[1733145584666,20.90171825,225.03,224.96,20.90171825]
[1733145584887,20.90171825,225.02,224.95,20.90171825]
[1733145585380,20.90171825,225.0,224.93,20.90171825]
[1733145585574,20.90171825,224.98,224.92,46.3583]
[1733145585771,20.90171825,224.98,224.92,13.2831]
[1733145585975,20.90171825,224.99,224.93,20.90171825]
[1733145586777,20.90171825,224.97,224.89,20.90171825]
[1733145586976,1.1109,225.03,224.89,20.90171825]
[1733145586977,20.90171825,224.96,224.89,20.90171825]
[1733145587162,20.90171825,224.98,224.91,20.90171825]
[1733145587364,20.90171825,224.98,224.92,20.90171825]
[1733145588287,22.01281825,225.0,224.93,20.90171825]
[1733145588472,22.01281825,225.0,224.94,20.90171825]
[1733145588680,22.01281825,225.0,224.88,0.88686039]
[1733145588681,20.90171825,225.03,224.96,20.90171825]
[1733145588982,20.90171825,225.02,224.95,20.90171825]
[1733145589290,20.90171825,225.0,224.93,20.90171825]
[1733145590066,20.90171825,225.01,224.94,20.90171825]
[1733145591065,22.01271825,225.02,224.95,20.90171825]
[1733145591269,20.90171825,225.04,224.97,20.90171825]
[1733145591473,20.90171825,225.03,224.96,20.90171825]
[1733145591682,2.7498748,225.08,224.92,0.88673925]
[1733145591683,20.90171825,225.01,224.92,0.88673925]
[1733145591983,3.3322,225.07,224.93,20.90171825]
[1733145591984,20.90171825,225.0,224.93,20.90171825]
[1733145592578,20.90171825,224.99,224.92,20.90171825]
[1733145592892,20.90171825,225.06,224.9,0.88673331]
[1733145592893,20.90171825,224.98,224.9,20.90171825]
[1733145593194,20.90171825,224.98,224.91,20.90171825]
[1733145593890,20.90171825,224.97,224.9,20.90171825]
[1733145594268,20.90171825,224.95,224.88,20.90171825]
[1733145594889,20.90171825,224.92,224.85,20.90171825]
[1733145595691,20.90171825,224.93,224.86,20.90171825]
[1733145596698,20.90171825,224.87,224.8,81.8182]
[1733145596988,20.90171825,224.81,224.8,81.8182]
[1733145598998,20.90171825,224.82,224.8,81.8182]
[1733145599475,20.90171825,224.86,224.8,81.8182]
[1733145600270,20.90171825,224.85,224.8,81.8182]
[1733145600568,20.90171825,224.86,224.8,81.8182]
[1733145600776,32.226,224.88,224.8,102.71991825]
[1733145600777,20.90171825,224.87,224.8,102.71991825]
[1733145601389,20.90171825,224.86,224.8,81.8182]
[1733145601689,20.90171825,224.85,224.8,81.8182]
[1733145602084,20.90171825,224.84,224.8,81.8182]
[1733145602281,20.90171825,224.83,224.8,81.8182]
[1733145602479,20.90171825,224.84,224.8,81.8182]
[1733145603886,12.4266,224.91,224.8,81.8182]
[1733145603887,20.90171825,224.81,224.8,81.8182]
[1733145604193,20.90171825,224.82,224.8,81.8182]
[1733145605431,1.1119,224.84,224.8,81.8182]
[1733145605432,20.90171825,224.81,224.8,81.8182]
[1733145606070,20.90171825,224.82,224.8,81.8182]
[1733145606473,20.90171825,224.83,224.8,81.8182]
[1733145606677,20.90171825,224.85,224.8,81.8182]
[1733145606874,3.3349,224.89,224.8,81.8182]
[1733145606875,20.90171825,224.86,224.8,81.8182]
[1733145607077,31.2904,224.93,224.84,20.90171825]
[1733145607370,20.90171825,224.92,224.86,20.90171825]
[1733145607574,1.1114,224.93,224.83,13.06753078]
[1733145607575,13.06753078,224.9,224.83,13.06753078]
[1733145607776,13.06753078,224.88,224.81,58.58733078]
[1733145608184,13.06753078,224.87,224.81,45.5198]
[1733145608682,13.06753078,224.95,224.8,94.88573078]
[1733145608683,13.06753078,224.86,224.8,81.8182]
[1733145609202,13.06753078,224.81,224.8,81.8182]
[1733145609580,20.92659096,224.81,224.8,81.8182]
[1733145609994,0.12549,224.86,224.8,81.8182]
[1733145610209,1.1118,224.85,224.8,81.8182]
[1733145610397,20.92659096,224.82,224.8,81.8182]
[1733145610715,20.92659096,224.81,224.8,81.8182]
[1733145612302,20.0,224.85,224.75,0.71633107]
[1733145612604,20.92659096,224.79,224.75,0.71633107]
[1733145612804,20.92659096,224.82,224.75,21.64292203]
[1733145612986,20.92659096,224.83,224.77,0.71633107]
[1733145613193,20.92659096,224.82,224.77,0.71633107]
[1733145613494,20.92659096,224.84,224.79,0.71633107]
[1733145613700,20.92659096,224.86,224.79,21.64292203]
[1733145613877,20.92659096,224.84,224.79,0.71633107]
[1733145614080,20.92659096,224.84,224.77,21.64292203]
[1733145614301,20.92659096,224.83,224.79,0.71633107]
[1733145614496,20.92659096,224.84,224.79,0.71633107]
[1733145614697,20.92659096,224.82,224.79,0.71633107]
[1733145614879,20.92659096,224.82,224.77,0.71633107]
[1733145615081,20.92659096,224.81,224.77,0.71633107]
[1733145615993,20.92659096,224.82,224.76,0.71633107]
[1733145616194,20.92659096,224.82,224.79,0.71633107]
[1733145616397,20.92659096,224.82,224.77,0.71633107]
[1733145616804,20.92659096,224.81,224.77,0.71633107]
[1733145617000,20.92659096,224.82,224.79,0.71633107]
[1733145617301,20.92659096,224.83,224.79,0.71633107]
[1733145617488,22.03849096,224.84,224.79,0.71633107]
[1733145617681,22.03849096,224.84,224.77,20.92659096]
[1733145617904,22.03849096,224.84,224.79,0.71633107]
[1733145618101,20.92659096,224.83,224.79,0.71633107]
[1733145618606,1.1119,224.84,224.79,21.64292203]
[1733145619585,1.1119,224.84,224.8,0.71633107]
[1733145619901,20.92659096,224.85,224.8,0.71633107]
[1733145620510,20.92659096,224.85,224.78,20.92659096]
[1733145620685,20.92659096,224.85,224.8,0.71633107]
[1733145621011,20.92659096,224.83,224.8,0.71633107]
[1733145621391,20.92659096,224.83,224.78,0.71633107]
[1733145621593,20.92659096,224.83,224.8,0.71633107]
[1733145621816,22.03849096,224.84,224.8,0.71633107]
[1733145622106,20.92659096,224.85,224.8,0.71633107]
[1733145622615,20.92659096,224.86,224.8,0.71633107]
[1733145623295,20.92659096,224.86,224.81,0.71633107]
[1733145623608,20.92659096,224.86,224.79,20.92659096]
[1733145623789,20.92659096,224.86,224.81,0.71633107]
[1733145624110,20.92659096,224.85,224.81,0.71633107]
[1733145625211,20.92659096,224.86,224.81,0.71633107]
[1733145625421,20.92659096,224.93,224.85,21.64292203]
[1733145625589,20.92659096,224.94,224.87,20.92659096]
[1733145625789,20.92659096,224.91,224.85,0.71633107]
[1733145626088,0.25098,224.94,224.85,0.71633107]
[1733145626413,20.92659096,224.9,224.85,0.71633107]
[1733145627005,20.92659096,224.92,224.85,21.64292203]
[1733145627395,20.92659096,224.91,224.85,0.71633107]
[1733145627917,20.92659096,224.9,224.85,0.71633107]
[1733145628087,20.92659096,224.88,224.83,0.71633107]
[1733145628285,20.92659096,224.89,224.86,0.71633107]
[1733145629018,20.92659096,224.88,224.84,0.71633107]
[1733145629518,20.92659096,224.87,224.84,0.71633107]
[1733145629812,13.07132272,224.87,224.84,0.71633107]
[1733145631194,13.07132272,224.85,224.82,12.8458]
[1733145631400,13.07132272,224.84,224.82,12.8458]
[1733145631615,13.07132272,224.85,224.82,12.8458]
[1733145632421,13.07132272,224.84,224.82,12.8458]
[1733145632928,13.07132272,224.83,224.82,12.8458]
[1733145633610,13.07132272,224.83,224.79,0.71633107]
[1733145633814,13.07132272,224.82,224.79,0.71633107]
[1733145634214,13.07132272,224.83,224.81,0.71633107]
[1733145635024,13.07132272,224.82,224.77,0.71633107]
[1733145635199,13.07132272,224.82,224.8,0.71633107]
[1733145635527,13.07132272,224.81,224.78,0.71633107]
[1733145636321,13.07132272,224.81,224.76,0.71633107]
[1733145636322,14.18332272,224.81,224.76,0.71633107]
[1733145636513,13.07132272,224.8,224.76,0.71633107]
[1733145638528,13.07132272,224.79,224.76,0.71633107]
[1733145638822,13.07132272,224.77,224.72,0.71633107]
[1733145639004,13.07132272,224.76,224.72,0.71633107]
[1733145639325,13.07132272,224.75,224.72,0.71633107]
[1733145639627,13.07132272,224.74,224.72,0.71633107]
[1733145639827,13.07132272,224.76,224.72,0.71633107]
[1733145640127,13.07132272,224.74,224.71,0.71633107]
[1733145640316,13.07132272,224.73,224.71,0.71633107]
[1733145640519,13.07132272,224.75,224.71,0.71633107]
[1733145641030,13.07132272,224.74,224.71,0.71633107]
[1733145641214,13.07132272,224.73,224.71,0.71633107]
[1733145642109,13.07132272,224.72,224.68,0.71633107]
[1733145642316,13.07132272,224.72,224.64,12.6471]
[1733145642317,13.07132272,224.7,224.65,0.71633107]
[1733145642519,13.07132272,224.69,224.64,12.6471]
[1733145642825,13.07132272,224.67,224.64,12.6471]
[1733145643031,13.07132272,224.68,224.66,0.71633107]
[1733145643331,13.07132272,224.69,224.66,0.71633107]
[1733145643505,13.07132272,224.7,224.66,0.71633107]
[1733145643705,13.07132272,224.71,224.66,0.71633107]
[1733145644033,31.5927,224.78,224.65,0.71633107]
[1733145644034,13.07132272,224.68,224.65,0.71633107]
[1733145644220,13.07132272,224.69,224.65,0.71633107]
[1733145644527,13.07132272,224.66,224.62,0.71633107]
[1733145644914,13.07132272,224.65,224.62,0.71633107]
[1733145645105,13.07132272,224.64,224.62,0.71633107]
[1733145645314,13.07132272,224.65,224.62,0.71633107]
[1733145645831,13.07132272,224.66,224.62,0.71633107]
[1733145646028,13.07132272,224.68,224.64,0.71633107]
[1733145646208,13.07132272,224.71,224.66,0.71633107]
[1733145646516,13.07132272,224.71,224.68,0.71633107]
[1733145647329,13.07132272,224.7,224.66,0.71633107]
[1733145647525,13.07132272,224.7,224.68,0.71633107]
[1733145647923,13.07132272,224.71,224.68,0.71633107]
[1733145649025,13.07132272,224.7,224.68,0.71633107]
[1733145649513,13.07132272,224.69,224.68,0.71633107]
[1733145649714,13.07132272,224.69,224.66,0.71633107]
[1733145649926,13.07132272,224.67,224.64,31.22723107]
[1733145650539,13.07132272,224.65,224.64,31.22723107]
[1733145651434,13.07132272,224.65,224.64,30.5109]
[1733145652106,13.07132272,224.65,224.64,31.22723107]
[1733145652509,13.07132272,224.65,224.64,30.5109]
[1733145653135,14.30961272,224.65,224.64,30.5109]
[1733145653303,14.18412272,224.65,224.64,30.5109]
[1733145653510,1.1126,224.69,224.64,30.5109]
[1733145653718,13.07132272,224.65,224.64,30.5109]
[1733145655214,13.07132272,224.65,224.6,0.71633107]
[1733145655427,13.07132272,224.61,224.6,0.71633107]
[1733145657240,13.07132272,224.61,224.58,0.71633107]
[1733145657417,13.07132272,224.59,224.58,0.71633107]
[1733145657738,13.07132272,224.62,224.6,0.71633107]
[1733145657972,0.12549,224.68,224.6,0.71633107]
[1733145657973,13.07132272,224.61,224.6,0.71633107]
[1733145658311,13.07132272,224.61,224.58,0.71633107]
[1733145658518,13.07132272,224.61,224.6,0.71633107]
[1733145658826,13.07132272,224.65,224.63,0.71633107]
[1733145659740,13.07132272,224.71,224.68,0.71633107]
[1733145659939,13.07132272,224.75,224.7,0.71633107]
[1733145660243,13.07132272,224.75,224.72,0.71633107]
[1733145660412,1.1121,224.79,224.72,0.71633107]
[1733145660940,13.07132272,224.78,224.74,0.71633107]
[1733145661129,13.07132272,224.76,224.74,0.71633107]
[1733145661338,13.07132272,224.75,224.74,0.71633107]